fUST/lending_fUST_20240520
["ID","MTS","AMOUNT","RATE_DAILY","PERIOD"]
[327532352,1716180632785,-733.8938659,0.0003456,3]
[327532355,1716180632795,-151.0,0.0003456,2]
[327532357,1716180632804,-158.556293,0.0003456,2]
[327532358,1716180632813,-522.016688,0.0003456,2]
[327532360,1716180632822,-522.016688,0.0003456,2]
[327532362,1716180632832,-294.457322,0.0003456,2]
[327532364,1716180632842,-153.732887,0.0003456,2]
[327532367,1716180632851,-226.73805519,0.00034569,7]
[327532368,1716180632861,-471893.09994783,0.0003457,2]
[327532371,1716180632875,-305.84891193,0.0003457,2]
[327532373,1716180632887,-8359.92816974,0.0003457,2]
[327532620,1716180637996,-1013.63938499,0.00034309,2]
[327532622,1716180638005,-500.0,0.00034529,7]
[327532624,1716180638014,-587.22466664,0.00034529,7]
[327532626,1716180638023,-1000.0,0.00034554,2]
[327532628,1716180638033,-49148.53930358,0.0003457,2]
[327532638,1716180641840,-73899.92205749,0.0003457,2]
[327532639,1716180641849,-354.24576295,0.0003457,2]
[327532640,1716180641858,-151.0,0.0003457,2]
[327532641,1716180641869,-151.541686,0.0003457,2]
[327532642,1716180641880,-151.0,0.0003457,2]
[327532643,1716180641889,-151.0,0.0003457,2]
[327532644,1716180641898,-151.0,0.0003457,2]
[327532645,1716180641907,-201.685773,0.0003457,2]
[327532646,1716180641918,-151.0,0.0003457,2]
[327532647,1716180641927,-151.0,0.0003457,2]
[327532648,1716180641936,-151.0,0.0003457,2]
[327532649,1716180641945,-151.0,0.0003457,2]
[327532650,1716180641955,-151.0,0.0003457,2]
[327532651,1716180641965,-151.0,0.0003457,2]
[327532652,1716180641976,-171.594172,0.0003457,2]
[327532653,1716180641985,-171.594172,0.0003457,2]
[327532654,1716180641994,-151.0,0.0003457,2]
[327532655,1716180642003,-151.0,0.0003457,2]
[327532656,1716180642012,-151.0,0.0003457,2]
[327532657,1716180642022,-522.016688,0.0003457,2]
[327532658,1716180642030,-522.016688,0.0003457,2]
[327532659,1716180642040,-178.624595,0.0003457,2]
[327532660,1716180642049,-178.624595,0.0003457,2]
[327532661,1716180642058,-500.0,0.0003457,2]
[327532662,1716180642067,-1000.0,0.000348,3]
[327532663,1716180642077,-21922.64643682,0.00034857,3]
[327532664,1716180642089,-32450.80584859,0.00034857,3]
[327532665,1716180642100,-899.82195666,0.00034857,3]
[327532698,1716180643121,-600.66692614,0.00034857,3]
[327532699,1716180643133,-622.93575481,0.00034857,3]
[327532719,1716180647165,-2381.1742282,0.00034857,3]
[327532720,1716180647176,-41292.23884878,0.00034857,3]
[327532721,1716180647186,-151.0,0.00034867,2]
[327532722,1716180647195,-151.0,0.00034867,2]
[327532723,1716180647204,-151.0,0.00034867,2]
[327532724,1716180647213,-218.734188,0.00034867,2]
[327532725,1716180647222,-218.734188,0.00034867,2]
[327532726,1716180647231,-151.0,0.00034867,2]
[327532727,1716180647240,-151.0,0.00034867,2]
[327532728,1716180647249,-151.0,0.00034867,2]
[327532729,1716180647258,-151.0,0.00034867,2]
[327532730,1716180647267,-151.0,0.00034867,2]
[327532731,1716180647276,-171.594172,0.00034867,2]
[327532732,1716180647286,-171.594172,0.00034867,2]
[327532733,1716180647295,-151.0,0.00034867,2]
[327532734,1716180647305,-151.0,0.00034867,2]
[327532735,1716180647314,-151.0,0.00034867,2]
[327532736,1716180647323,-162.193588,0.00034867,2]
[327532737,1716180647332,-156.741569,0.00034867,2]
[327532738,1716180647342,-522.016688,0.00034867,2]
[327532739,1716180647352,-522.016688,0.00034867,2]
[327532740,1716180647361,-522.016688,0.00034867,2]
[327532741,1716180647370,-522.016688,0.00034867,2]
[327532742,1716180647380,-522.016688,0.00034867,2]
[327532743,1716180647389,-522.016688,0.00034867,2]
[327532744,1716180647399,-178.624595,0.00034867,2]
[327532745,1716180647408,-178.624595,0.00034867,2]
[327532746,1716180647419,-151.0,0.00034867,2]
[327532747,1716180647429,-152.859867,0.00034867,2]
[327532748,1716180647440,-151.0,0.00034867,2]
[327532749,1716180647449,-156.424417,0.00034867,2]
[327532750,1716180647461,-625.735016,0.00034867,2]
[327532751,1716180647472,-625.735016,0.00034867,2]
[327532752,1716180647481,-625.735016,0.00034867,2]
[327532753,1716180647490,-151.0,0.00034867,2]
[327532754,1716180647500,-151.0,0.00034867,2]
[327532755,1716180647510,-151.0,0.00034867,2]
[327532756,1716180647519,-354.94030859,0.00034867,2]
[327532757,1716180647532,-270.79470741,0.00034867,2]
[327532758,1716180647541,-327.50563468,0.00034867,2]
[327532759,1716180647585,8332.53615797,0.00029,30]
[327532760,1716180663750,5543.0,0.0002651,120]
[327532762,1716180725113,1227.70084448,0.00015,2]
[327532771,1716181638151,-480.0,0.0002091,2]
[327532772,1716181638173,-3785.52445759,0.00020913,2]
[327532792,1716181748117,-12267.9183553,0.00020913,2]
[327532793,1716181764096,-503.82793049,0.00020913,2]
[327532794,1716181764116,-167.61413,0.00024384,2]
[327532795,1716181764137,-1000.0,0.0002499,2]
[327532796,1716181764157,-166.666667,0.00028699,2]
[327532797,1716181764177,-170.4105768,0.00028986,2]
[327532798,1716181764198,-3737.1550272,0.00029,30]
[327532799,1716181764218,-173.55940946,0.00029167,2]
[327532800,1716181764238,-150.145,0.00030421,2]
[327532801,1716181764259,-658.295403,0.00031,6]
[327532803,1716181777758,222.58255221,0.00029,30]
[327532835,1716181832623,-706.99,0.00029,30]
[327532842,1716181832678,-7385.69219221,0.00029,30]
[327532844,1716181832690,-3754.42644075,0.00029,30]
[327532847,1716181832708,-166.666667,0.00032612,2]
[327532849,1716181832722,-1833.084717,0.00033,15]
[327532851,1716181832732,-1000.0,0.000335,15]
[327532853,1716181832742,-1000.0,0.00034,15]
[327532855,1716181832752,-4280.77051854,0.000343,5]
[327532857,1716181832763,-1000.0,0.000345,15]
[327532859,1716181832772,-171.6653792,0.00034518,3]
[327532861,1716181832782,-1065.04433155,0.0003457,4]
[327532864,1716181832792,-500.0,0.00034763,3]
[327532866,1716181832802,-151.0,0.000348,11]
[327532868,1716181832812,-14975.32139087,0.00034817,120]
[327532870,1716181832821,-150.0,0.00034817,120]
[327532872,1716181832831,-342.85192047,0.00034817,2]
[327532874,1716181832840,-2236.41907796,0.00034817,2]
[327532876,1716181832850,-1569.61536575,0.00034817,120]
[327532878,1716181832859,-218.88715352,0.00034817,7]
[327532880,1716181832869,-238.26646995,0.00034817,30]
[327532882,1716181832878,-3284.0,0.00034817,30]
[327532884,1716181832888,-412.78334594,0.00034817,30]
[327532886,1716181832896,-1667.46168463,0.00034817,60]
[327532888,1716181832906,-255.0,0.00034817,7]
[327532890,1716181832915,-200.0,0.00034817,7]
[327532892,1716181832925,-160.0,0.00034882,4]
[327532894,1716181832934,-438.22767892,0.00035,2]
[327532896,1716181832944,-15546.76991748,0.00035,30]
[327532898,1716181832953,-160.0,0.00035231,5]
[327532900,1716181832963,-160.0,0.00035581,6]
[327532902,1716181832973,-160.0,0.00035931,7]
[327532904,1716181832982,-196.70853573,0.00036,14]
[327532906,1716181832992,-160.0,0.0003628,8]
[327532908,1716181833002,-160.0,0.0003663,9]
[327532910,1716181833011,-160.0,0.00036979,10]
[327532912,1716181833022,-160.0,0.00037329,11]
[327532914,1716181833032,-160.0,0.00037679,12]
[327532916,1716181833042,-198.0,0.00037999,23]
[327532918,1716181833052,-897.76903445,0.00038,30]
[327532920,1716181833062,-160.0,0.00038028,13]
[327532922,1716181833071,-160.0,0.00038378,14]
[327532924,1716181833082,-150.516,0.00038417,7]
[327532926,1716181833092,-6270.712927,0.000385,60]
[327532928,1716181833102,-160.0,0.00038727,15]
[327532930,1716181833112,-160.0,0.00039077,16]
[327532932,1716181833122,-160.0,0.00039427,17]
[327532934,1716181833131,-160.0,0.00039776,18]
[327532936,1716181833141,-2000.0,0.0003984,2]
[327532938,1716181833151,-3751.57653393,0.000399,2]
[327532940,1716181833160,-151.863208,0.0003997,2]
[327532942,1716181833170,-151.0,0.0003997,2]
[327532944,1716181833179,-154.174824,0.0003997,2]
[327532946,1716181833188,-151.0,0.0003997,2]
[327532948,1716181833199,-151.0,0.0003997,2]
[327532950,1716181833208,-151.0,0.0003997,2]
[327532952,1716181833219,-226.73805519,0.00039979,31]
[327532953,1716181833229,-15219.62962089,0.0003998,3]
[327532955,1716181833238,-44958.03,0.0003999,3]
[327532957,1716181833248,-205.961555,0.0004,120]
[327532959,1716181833258,-164.49139842,0.0004,30]
[327532961,1716181833268,-78409.6255664,0.0004,2]
[327532963,1716181833278,-159.613045,0.0004,2]
[327532965,1716181833288,-151.0,0.0004,2]
[327532967,1716181833298,-155.751438,0.0004,2]
[327532969,1716181833308,-348.11644,0.0004,2]
[327532971,1716181833317,-348.11644,0.0004,2]
[327532973,1716181833327,-151.0,0.0004,2]
[327532975,1716181833337,-151.0,0.0004,2]
[327532977,1716181833346,-153.732887,0.0004,2]
[327532979,1716181833356,-196.860769,0.0004,2]
[327532981,1716181833365,-196.860769,0.0004,2]
[327532983,1716181833375,-151.0,0.0004,2]
[327532985,1716181833384,-151.0,0.0004,2]
[327532987,1716181833393,-151.0,0.0004,2]
[327532989,1716181833403,-151.0,0.0004,2]
[327532990,1716181833412,-151.0,0.0004,2]
[327532992,1716181833423,-151.0,0.0004,2]
[327532994,1716181833434,-151.0,0.0004,2]
[327532996,1716181833443,-151.0,0.0004,2]
[327532998,1716181833453,-160.0,0.00040126,19]
[327533000,1716181833462,-160.0,0.00040475,20]
[327533002,1716181833474,-270.89881967,0.00040475,5]
[327533004,1716181833483,-160.0,0.00040475,5]
[327533005,1716181833492,-500.0,0.00040822,31]
[327533007,1716181833503,-568.93264523,0.00040822,31]
[327533009,1716181833512,-1008.13534833,0.00041095,30]
[327533010,1716181833522,-500.0,0.00041096,31]
[327533012,1716181833531,-224.03354158,0.00041096,31]
[327533013,1716181833540,-958.05994816,0.00041234,120]
[327533014,1716181833552,-240.84699711,0.00041234,4]
[327533015,1716181833562,-208.2820489,0.00041315,2]
[327533016,1716181833571,-204.3998579,0.00041315,2]
[327533017,1716181833580,-204.3998579,0.00041315,2]
[327533018,1716181833590,-408.7358924,0.00041315,2]
[327533019,1716181833600,-204.3998579,0.00041315,2]
[327533020,1716181833609,-408.7997158,0.00041315,2]
[327533021,1716181833619,-204.3998579,0.00041315,2]
[327533022,1716181833628,-204.3998579,0.00041315,2]
[327533023,1716181833637,-311813.25366048,0.00042,4]
[327533032,1716181838093,-341.51697593,0.00042,4]
[327533033,1716181838106,-3132.80298292,0.00042,4]
[327533034,1716181838117,-7041.61009821,0.00042,4]
[327533035,1716181838129,-11833.82536595,0.00042,4]
[327533036,1716181838140,-3868.57681882,0.00042,4]
[327533040,1716181842423,-26360.43242301,0.00042,4]
[327533041,1716181842578,-35607.98167468,0.00042,4]
[327533042,1716181842587,-204.3998579,0.00042137,2]
[327533043,1716181842596,-204.3998579,0.00042137,2]
[327533044,1716181842606,-204.3998579,0.00042137,2]
[327533045,1716181842616,-204.3998579,0.00042137,2]
[327533046,1716181842625,-204.3998579,0.00042137,2]
[327533048,1716181842635,-204.3998579,0.00042137,2]
[327533050,1716181842644,-204.3998579,0.00042137,2]
[327533052,1716181842654,-204.3998579,0.00042137,2]
[327533053,1716181842663,-204.3998579,0.00042137,2]
[327533054,1716181842672,-204.3998579,0.00042137,2]
[327533055,1716181842681,-204.3998579,0.00042137,2]
[327533057,1716181842691,-204.3998579,0.00042137,2]
[327533060,1716181842700,-373.0,0.00042345,120]
[327533064,1716181842709,-1705.38384637,0.000425,30]
[327533068,1716181842719,-8681.53983929,0.00042996,2]
[327533072,1716181842730,-18884.5767921,0.00043,2]
[327533076,1716181842739,-191.909592,0.00043,7]
[327533079,1716181842749,-151.0,0.00043,7]
[327533081,1716181842758,-3303.84356176,0.00043833,4]
[327533083,1716181842768,-152.333344,0.00043833,7]
[327533084,1716181842777,-348.11644,0.00043833,7]
[327533086,1716181842786,-348.11644,0.00043833,7]
[327533088,1716181842795,-151.0,0.00043833,7]
[327533090,1716181842804,-213.258139,0.00043833,7]
[327533092,1716181842814,-196.860769,0.00043833,7]
[327533094,1716181842824,-196.860769,0.00043833,7]
[327533096,1716181842833,-151.0,0.00043833,7]
[327533098,1716181842842,-151.0,0.00043833,7]
[327533099,1716181842851,-151.0,0.00043833,7]
[327533100,1716181842860,-151.0,0.00043833,7]
[327533101,1716181842870,-151.0,0.00043833,7]
[327533102,1716181842880,-191.96833,0.00043833,7]
[327533103,1716181842889,-151.0,0.00043833,2]
[327533104,1716181842898,-280.905023,0.00043833,2]
[327533105,1716181842907,-151.0,0.00043833,7]
[327533106,1716181842917,-151.0,0.00043833,7]
[327533107,1716181842926,-151.0,0.00043833,7]
[327533108,1716181842935,-151.0,0.00043833,7]
[327533109,1716181842945,-151.0,0.00043833,7]
[327533110,1716181842954,-151.0,0.00043833,7]
[327533111,1716181842963,-1000.0,0.00044,120]
[327533112,1716181842972,-286.0,0.000446,20]
[327533113,1716181842983,-566.71,0.00044817,7]
[327533114,1716181842992,-6863.55968318,0.00045,4]
[327533115,1716181843002,-308.05833473,0.00045,10]
[327533116,1716181843012,-1000.0,0.00045,2]
[327533117,1716181843021,-522.21,0.00045,7]
[327533118,1716181843030,-150.81901718,0.00045585,2]
[327533120,1716181843040,-154.82968734,0.000459,4]
[327533121,1716181843049,-301.63803436,0.00046351,4]
[327533122,1716181843059,-2596.41928665,0.0004638,90]
[327533123,1716181843069,-6369.25972471,0.00046475,5]
[327533124,1716181843079,-78768.72578445,0.00046565,3]
[327533125,1716181843092,-4565.8429738,0.00046565,3]
[327533127,1716181843104,-1279.04953872,0.00046565,3]
[327533128,1716181843115,-1118.35170303,0.00046565,3]
[327533129,1716181843125,-502.40965041,0.00046575,30]
[327533130,1716181843134,-509.65539537,0.00046575,30]
[327533131,1716181843144,-151.0,0.00046575,7]
[327533132,1716181843153,-508.22994754,0.00046575,30]
[327533134,1716181843163,-500.9566175,0.00046575,30]
[327533135,1716181843172,-505.10865373,0.00046575,30]
[327533136,1716181843182,-500.0,0.00046575,30]
[327533137,1716181843191,-500.0,0.00046575,30]
[327533138,1716181843200,-504.01991438,0.00046575,30]
[327533139,1716181843210,-500.0,0.00046575,30]
[327533140,1716181843220,-500.0,0.00046575,30]
[327533141,1716181843232,-151.0,0.00046575,7]
[327533142,1716181843242,-292.372988,0.00046575,7]
[327533143,1716181843252,-500.0,0.00046575,30]
[327533144,1716181843260,-511.47883437,0.00046575,30]
[327533145,1716181843270,-500.0,0.00046575,30]
[327533146,1716181843279,-500.0,0.00046575,30]
[327533147,1716181843289,-500.0,0.00046575,30]
[327533148,1716181843298,-502.60662101,0.00046575,30]
[327533149,1716181843308,-500.0,0.00046575,30]
[327533150,1716181843318,-500.0,0.00046575,30]
[327533151,1716181843327,-500.0,0.00046575,30]
[327533152,1716181843336,-500.0,0.00046575,30]
[327533153,1716181843345,-500.0,0.00046575,30]
[327533154,1716181843355,-500.0,0.00046575,30]
[327533155,1716181843364,-500.0,0.00046575,30]
[327533156,1716181843373,-500.65065044,0.00046575,30]
[327533157,1716181843383,-502.01914308,0.00046575,30]
[327533158,1716181843392,-500.27261045,0.00046575,30]
[327533160,1716181843402,-500.64455685,0.00046575,30]
[327533162,1716181843411,-500.0,0.00046575,30]
[327533163,1716181843423,-500.0,0.00046575,30]
[327533165,1716181843435,-500.0,0.00046575,2]
[327533166,1716181843445,-500.0,0.00046575,30]
[327533167,1716181843454,-505.63163605,0.00046575,30]
[327533168,1716181843463,-500.0,0.00046575,30]
[327533169,1716181843475,-502.5400818,0.00046575,30]
[327533170,1716181843484,-500.0,0.00046575,30]
[327533171,1716181843493,-500.0,0.00046575,30]
[327533172,1716181843504,-500.0,0.00046575,30]
[327533173,1716181843514,-502.60259629,0.00046575,30]
[327533174,1716181843523,-503.8913663,0.00046575,30]
[327533175,1716181843532,-500.0,0.00046575,30]
[327533176,1716181843542,-500.0,0.00046575,30]
[327533177,1716181843551,-500.0,0.00046575,30]
[327533178,1716181843560,-500.0,0.00046575,30]
[327533179,1716181843569,-500.0,0.00046575,30]
[327533180,1716181843578,-505.1641777,0.00046575,30]
[327533181,1716181843587,-532.13062325,0.00046575,30]
[327533182,1716181843597,-501.99590272,0.00046575,30]
[327533183,1716181843607,-506.88135671,0.00046575,30]
[327533184,1716181843616,-500.0,0.00046575,30]
[327533185,1716181843625,-500.0,0.00046575,30]
[327533186,1716181843634,-155.43286193,0.00046575,30]
[327533187,1716181843643,-151.0,0.00046575,7]
[327533188,1716181843652,-151.688666,0.00046575,7]
[327533189,1716181843661,-500.0,0.00046575,30]
[327533190,1716181843670,-500.0,0.00046575,30]
[327533191,1716181843680,-500.0,0.00046575,30]
[327533192,1716181843689,-500.0,0.00046575,30]
[327533193,1716181843698,-500.0,0.00046575,30]
[327533194,1716181843707,-500.0,0.00046575,30]
[327533195,1716181843716,-500.0,0.00046575,31]
[327533196,1716181843727,-500.0,0.00046575,32]
[327533197,1716181843737,-500.0,0.00046575,33]
[327533198,1716181843746,-500.0,0.00046575,34]
[327533199,1716181843755,-424.09505563,0.00046575,35]
[327533200,1716181843764,-500.0,0.00046575,30]
[327533201,1716181843774,-500.0,0.00046575,30]
[327533202,1716181843783,-500.0,0.00046575,30]
[327533203,1716181843792,-500.0,0.00046575,30]
[327533204,1716181843801,-500.0,0.00046575,31]
[327533205,1716181843810,-500.0,0.00046575,32]
[327533206,1716181843819,-502.76819667,0.00046575,33]
[327533207,1716181843829,-421.45097719,0.00046575,30]
[327533208,1716181843838,-162.59187357,0.00046575,30]
[327533209,1716181843847,-645.87,0.00046575,30]
[327533210,1716181843856,-311.14176228,0.00046575,30]
[327533211,1716181843865,-500.0,0.00046575,30]
[327533212,1716181843874,-501.20990941,0.00046575,30]
[327533213,1716181843883,-500.0,0.00046575,30]
[327533214,1716181843892,-501.81449843,0.00046575,30]
[327533215,1716181843901,-500.0,0.00046575,30]
[327533216,1716181843910,-500.0,0.00046575,30]
[327533217,1716181843919,-522.55290516,0.00046575,30]
[327533218,1716181843929,-500.0,0.00046575,30]
[327533219,1716181843938,-500.0,0.00046575,30]
[327533220,1716181843947,-500.0,0.00046575,31]
[327533221,1716181843956,-168.7532192,0.00046575,32]
[327533222,1716181843965,-1003.39419115,0.00046575,30]
[327533223,1716181843975,-500.0,0.00046575,30]
[327533224,1716181843985,-503.50801876,0.00046575,30]
[327533225,1716181843994,-500.0,0.00046575,30]
[327533226,1716181844003,-502.29741998,0.00046575,30]
[327533227,1716181844013,-500.0,0.00046575,30]
[327533228,1716181844023,-500.0,0.00046575,30]
[327533229,1716181844031,-500.0,0.00046575,30]
[327533230,1716181844041,-500.0,0.00046575,30]
[327533231,1716181844050,-500.0,0.00046575,30]
[327533232,1716181844059,-454.06771949,0.00046575,30]
[327533233,1716181844068,-502.7166546,0.00046575,30]
[327533234,1716181844078,-501.08821862,0.00046575,30]
[327533235,1716181844087,-500.0,0.00046575,30]
[327533236,1716181844096,-500.0,0.00046575,30]
[327533237,1716181844106,-500.0,0.00046575,30]
[327533238,1716181844115,-503.27934595,0.00046575,30]
[327533239,1716181844125,-500.0,0.00046575,7]
[327533240,1716181844134,-501.49151243,0.00046575,30]
[327533241,1716181844144,-500.0,0.00046575,30]
[327533242,1716181844153,-500.0,0.00046575,30]
[327533243,1716181844163,-500.0,0.00046575,7]
[327533244,1716181844172,-500.0,0.00046575,30]
[327533245,1716181844181,-500.0,0.00046575,30]
[327533246,1716181844191,-519.48,0.00046575,30]
[327533247,1716181844199,-500.0,0.00046575,30]
[327533248,1716181844209,-501.48818418,0.00046575,30]
[327533249,1716181844218,-500.0,0.00046575,30]
[327533250,1716181844229,-500.0,0.00046575,30]
[327533251,1716181844238,-239.02266013,0.00046575,30]
[327533252,1716181844247,-500.0,0.00046575,30]
[327533253,1716181844256,-500.0,0.00046575,30]
[327533254,1716181844266,-537.52102334,0.00046575,30]
[327533255,1716181844275,-504.55587829,0.00046575,30]
[327533256,1716181844284,-399.44505452,0.00046575,30]
[327533257,1716181844294,-500.0,0.00046575,30]
[327533258,1716181844303,-503.60261346,0.00046575,30]
[327533259,1716181844312,-500.0,0.00046575,30]
[327533260,1716181844321,-500.0,0.00046575,30]
[327533261,1716181844330,-501.96188013,0.00046575,30]
[327533262,1716181844341,-500.0,0.00046575,30]
[327533263,1716181844350,-500.0,0.00046575,7]
[327533264,1716181844359,-1099.155015,0.00046575,7]
[327533265,1716181844369,-1099.155015,0.00046575,7]
[327533266,1716181844378,-1099.155015,0.00046575,7]
[327533267,1716181844387,-1099.155015,0.00046575,7]
[327533268,1716181844397,-500.0,0.00046575,30]
[327533269,1716181844407,-1099.155015,0.00046575,7]
[327533270,1716181844418,-1099.155015,0.00046575,7]
[327533271,1716181844431,-504.59206977,0.00046575,30]
[327533272,1716181844449,-1099.155015,0.00046575,7]
[327533273,1716181844458,-1099.155015,0.00046575,7]
[327533274,1716181844467,-1099.155015,0.00046575,7]
[327533275,1716181844478,-1099.155015,0.00046575,7]
[327533276,1716181844565,-1099.155015,0.00046575,7]
[327533277,1716181844575,-1099.155015,0.00046575,7]
[327533278,1716181844585,-504.26535947,0.00046575,30]
[327533279,1716181844594,-500.0,0.00046575,30]
[327533280,1716181844603,-504.06852747,0.00046575,30]
[327533281,1716181844612,-505.04658907,0.00046575,30]
[327533282,1716181844622,-500.0,0.00046575,30]
[327533283,1716181844632,-376.74563348,0.00046575,30]
[327533284,1716181844641,-504.63507648,0.00046575,30]
[327533285,1716181844650,-502.79049257,0.00046575,30]
[327533286,1716181844659,-392.39120022,0.00046575,30]
[327533287,1716181844667,-500.0,0.00046575,30]
[327533288,1716181844677,-503.03900665,0.00046575,30]
[327533289,1716181844686,-151.0,0.00046575,7]
[327533290,1716181844695,-151.0,0.00046575,7]
[327533291,1716181844704,-151.0,0.00046575,7]
[327533292,1716181844714,-151.0,0.00046575,7]
[327533293,1716181844723,-70.73899955,0.00046575,7]
[327533321,1716182019142,4703.57,0.00025,120]
[327533322,1716182029324,154.82968734,9.999e-05,2]
[327533357,1716182956120,-9749.98891351,0.00020911,2]
[327533358,1716182956140,-172.90857714,0.00020912,2]
[327533359,1716182956159,-286.65870738,0.00020912,2]
[327533360,1716182956274,-235.63950997,0.00020912,2]
[327533361,1716182956295,-187.21616057,0.00020912,2]
[327533362,1716182956315,-155.02234896,0.00020912,2]
[327533363,1716182956337,-159.18210697,0.00020912,2]
[327533364,1716182956358,-209.96086573,0.00020912,2]
[327533365,1716182956377,-507.53863365,0.00020913,2]
[327533366,1716182956398,-167.61413,0.00024384,2]
[327533367,1716182956418,-12069.69118517,0.00029,30]
[327533368,1716182956440,-150.0,0.00031,6]
[327533369,1716183005874,12069.69118517,0.00029,30]
[327533370,1716183025829,12069.69118517,0.00029,30]
[327533402,1716183038398,-423.56098939,0.00034867,3]
[327533404,1716183038408,-2319.72033501,0.00043,30]
[327533406,1716183038424,-603.12900096,0.00043,30]
[327533409,1716183038436,-2703.89886563,0.00043,30]
[327533411,1716183038446,-306.96121266,0.000449,28]
[327533413,1716183038457,-6863.99386966,0.00045,4]
[327533415,1716183038466,-264.0,0.00045,90]
[327533417,1716183038476,-264.0,0.00045685,90]
[327533420,1716183038488,-154.82968734,0.000459,4]
[327533423,1716183038498,-20156.0,0.00046,30]
[327533426,1716183038508,-171.6653792,0.00046109,3]
[327533429,1716183038518,-4253.58847162,0.00046316,2]
[327533431,1716183038528,-1000.0,0.00046342,7]
[327533433,1716183038538,-2000.0,0.00046375,2]
[327533436,1716183038549,-1000.0,0.00046446,7]
[327533438,1716183038560,-1000.0,0.00046539,7]
[327533439,1716183038570,-50806.78387525,0.00046565,3]
[327533442,1716183038583,-1331.94426912,0.00046565,3]
[327533677,1716183041850,8390.52586568,0.00029,30]
[327533680,1716183041873,134.06263815,0.00029,30]
[327533848,1716183043858,-2000.0,0.00046455,2]
[327533849,1716183043869,-19304.57185563,0.00046565,3]
[327533850,1716183043881,-1000.0,0.00046569,7]
[327533851,1716183043892,-162.6433155,0.00046574,30]
[327533852,1716183043902,-310.30008925,0.00046574,120]
[327533853,1716183043911,-458.11399081,0.00046574,120]
[327533854,1716183043920,-9038.1761829,0.00046575,3]
[327533855,1716183043931,-240.86369369,0.00046575,4]
[327533856,1716183043940,-618.96,0.00046575,30]
[327533857,1716183043950,-500.86548436,0.00046575,30]
[327533858,1716183043960,-506.7157986,0.00046575,30]
[327533859,1716183043971,-500.0,0.00046575,30]
[327533860,1716183043981,-539.95158567,0.00046575,30]
[327533861,1716183043990,-500.0,0.00046575,30]
[327533862,1716183044009,-633.00178214,0.00046575,30]
[327533863,1716183044020,-302.17976508,0.00046575,30]
[327533864,1716183044032,-500.0,0.00046575,30]
[327533865,1716183044043,-501.08233497,0.00046575,30]
[327533866,1716183044054,-500.0,0.00046575,7]
[327533867,1716183044065,-515.19899947,0.00046575,30]
[327533868,1716183044075,-506.34438827,0.00046575,30]
[327533869,1716183044084,-503.07514176,0.00046575,30]
[327533870,1716183044094,-504.09097034,0.00046575,30]
[327533871,1716183044104,-500.0,0.00046575,30]
[327533872,1716183044114,-500.0,0.00046575,30]
[327533873,1716183044123,-159.49993771,0.00046575,30]
[327533874,1716183044132,-500.0,0.00046575,30]
[327533875,1716183044142,-500.0,0.00046575,30]
[327533876,1716183044151,-501.87002062,0.00046575,30]
[327533877,1716183044161,-500.0,0.00046575,30]
[327533878,1716183044303,-504.19946571,0.00046575,30]
[327533879,1716183044314,-500.0,0.00046575,30]
[327533880,1716183044324,-245.46681918,0.00046575,30]
[327533881,1716183044334,-322.00160382,0.00046575,30]
[327533882,1716183044344,-500.0,0.00046575,30]
[327533883,1716183044353,-504.11461728,0.00046575,30]
[327533884,1716183044363,-500.0,0.00046575,30]
[327533885,1716183044372,-151.0,0.00046575,7]
[327533886,1716183044382,-612.91438741,0.00046575,30]